Cogmind - Beta 13 @@@ ROGUE MODE // 2024.04.27 @ 21:57:06 Player: Zaros426 Result: Destroyed by C4-Y63(R) with Subdweller Laser Performance ------------- Evolutions (0) 0 Regions Visited (2) 400 Robots Destroyed (19) 95 Value Destroyed (448) 448 Prototype IDs (2) 40 Alien Tech Used (0) 0 Bonus (0) 0 TOTAL SCORE: 983 Bonus ------- None Cogmind --------- Core Integrity 0/250 Matter 269/300 Energy 250/250 System Corruption 0% Temperature Cool (6) Movement Treading (240) Ox1 Location -10/Subcaves Parts ------- > --- POWER (1) -------- Ion Engine > --- PROPULSION (2) --- Light Treads > --- UTILITY (2) ------ Large Storage Unit ECM Suite > --- WEAPON (2) ------- EM Pulse Gun Battle Rifle > --- INVENTORY (15) --- Light Ion Engine Light Treads Aluminum Leg Large Storage Unit Improved Terrain Scanner Seismic Detector Peak State ------------ > --- POWER ------------ Ion Engine > --- PROPULSION ------- Light Treads Light Treads > --- UTILITY ---------- Large Storage Unit ECM Suite > --- WEAPON ----------- EM Pulse Gun Battle Rifle > --- INVENTORY -------- Light Ion Engine Light Treads Aluminum Leg Large Storage Unit Improved Terrain Scanner Seismic Detector [Rating: 8] Favorites ----------- Power Ion Engine Engine Ion Engine Propulsion Light Treads Treads Light Treads Leg Aluminum Leg Utility Small Storage Unit Device ECM Suite Storage Small Storage Unit Protection Light Armor Plating Weapon Assault Rifle Energy Gun EM Pulse Gun Ballistic Gun Assault Rifle Build | -11 -10 -10 ------- Run | Yrd Mat Sub Slots Evolved . | . . . Power . | . . . Propulsion . | . . . Utility . | . . . Weapon . | . . . Parts Attached 21 | 9 11 1 Power 3 | 1 2 . Engine 3 | 1 2 . Core . | . . . Reactor . | . . . Propulsion 7 | 4 3 . Treads 5 | 2 3 . Leg 2 | 2 . . Wheel . | . . . Hover . | . . . Flight . | . . . Utility 7 | 2 5 . Device 3 | 1 2 . Storage 3 | 1 2 . Processor . | . . . Hackware . | . . . Protection 1 | . 1 . Artifact . | . . . Weapon 4 | 2 1 1 Energy Gun 1 | . 1 . Energy Cannon . | . . . Ballistic Gun 3 | 2 . 1 Ballistic Cannon . | . . . Launcher . | . . . Special Weapon . | . . . Impact Weapon . | . . . Slashing Weapon . | . . . Piercing Weapon . | . . . Special Melee Weapon . | . . . Unidentified Prototypes . | . . . Parts Lost 6 | . 5 1 Power 1 | . 1 . Propulsion 2 | . 1 1 Utility 1 | . 1 . Weapon 2 | . 2 . Highest Loss Streak 2 | . 2 1 To Critical Strikes 1 | . . 1 Average Slot Usage (%) 88 | . 89 85 Engine 11 | . 10 14 Treads 16 | . 12 27 Leg 9 | . 12 . Device 8 | . 6 14 Storage 14 | . 14 14 Protection 4 | . 5 . Energy Gun 8 | . 6 14 Ballistic Gun 14 | . 19 1 Naked Turns . | . . . Heaviest Build 34 | 13 34 31 Greatest Support 40 | 40 40 40 Greatest Overweight (x) 1 | . 1 1 Average Overweight (x) . | . . . Largest Inventory Capacity 15 | 8 15 15 Average Capacity 11 | 7 10 15 Most Carried 6 | 3 6 6 Average Carried 4 | 1 4 6 Final Capacity 15 | 8 15 15 Final Carried 6 | 3 6 6 Class Distribution -------------------- 100% | Mutant Dominant Class ---------------- Mutant | -10/Materials Mutant | -10/Subcaves Resources | -11 -10 -10 ----------- Run | Yrd Mat Sub Matter Collected 667 | 314 334 19 Remotely . | . . . Salvage Created 621 | 55 566 . Parts 39 | 6 33 . Haulers Intercepted . | . . . Recyclers Shooed 1 | . 1 . Parts Field Recycled . | . . . Retrieved Matter . | . . . Parts Self-Destructed 2 | . . 2 Prevented . | . . . Kills | -11 -10 -10 ------- Run | Yrd Mat Sub Combat Hostiles Destroyed 12 | . 12 . Guns 12 | . 12 . Classes Destroyed 6 | 1 5 . Worker 3 | . 3 . Builder 1 | . 1 . Tunneler 2 | 2 . . Watcher 1 | . 1 . Swarmer 1 | . 1 . Grunt 11 | . 11 . Best Kill Streak 4 | 2 4 . Combat Bots Only 3 | . 3 . Max Kills in Single Turn 1 | 1 1 . Gunslinging . | . . . Exploded . | . . . Melee . | . . . Uniques/NPCs Destroyed . | . . . Combat | -11 -10 -10 -------- Run | Yrd Mat Sub Hostile Shots Fired 102 | . 83 19 Missed 31 | . 23 8 Damage Taken 1118 | . 905 213 Core 267 | . 245 22 Absorbed by Shields . | . . . Core Remaining (%) 100 | 100 . . Volleys Fired 69 | 4 60 5 Largest 2 | 2 2 1 Hottest 60 | 40 60 40 Shots Fired 127 | 8 114 5 Gun 127 | 8 114 5 Cannon . | . . . Launcher . | . . . Special . | . . . Kinetic 106 | 8 97 1 Thermal . | . . . Explosive . | . . . Electromagnetic 21 | . 17 4 Robot Hit Streak 10 | 2 10 . Robot Miss Streak 3 | 3 3 . Penetration Max . | . . . Secondary Targets 2 | . 2 . Max Gunslinging Chain 1 | . 1 . Shots Hit Robots 78 | 3 75 . Core Hits 31 | 3 28 . Critical Kills . | . . . Critical Parts Destroyed . | . . . Critical Strikes . | . . . Melee Attacks . | . . . Impact . | . . . Slashing . | . . . Piercing . | . . . Sneak Attacks . | . . . Combat Hostiles . | . . . Follow-up Attacks . | . . . Damage Inflicted 1012 | 51 961 . Guns 1012 | 51 961 . Cannons . | . . . Explosions . | . . . Melee . | . . . Ramming . | . . . Kinetic 848 | 51 797 . Thermal . | . . . Explosive . | . . . Electromagnetic 164 | . 164 . Impact . | . . . Slashing . | . . . Piercing . | . . . Highest Corruption . | . . . Average Corruption . | . . . Corruption Purged . | . . . Corruption Blocked . | . . . Overload Shots . | . . . Overflow Damage . | . . . Projectiles . | . . . Explosions . | . . . Melee . | . . . Knockbacks . | . . . Impact . | . . . Kinetic . | . . . Secondary . | . . . Self-Inflicted Damage . | . . . Shots . | . . . Rammed . | . . . Targets Rammed . | . . . Kicked . | . . . Crushed . | . . . Highest Temperature 90 | . 90 . Average Temperature 31 | . 31 . Received Heat Transfer 435 | . 399 36 Siege Activations . | . . . Robots Corrupted . | . . . Combat Hostiles . | . . . Parts Fried 1 | . 1 . Impact Corruptions . | . . . Robots Melted . | . . . Combat Hostiles . | . . . Parts Melted . | . . . Heat Transferred . | . . . Parts Sabotaged . | . . . Parts Stolen . | . . . Parts Stripped . | . . . Power Chain Reactions . | . . . Alert | -11 -10 -10 ------- Run | Yrd Mat Sub Peak Influence 359 | 10 359 . Initial 6 | . 6 . Average 168 | 3 188 . Maximum Alert Level 1 | . 1 . Low Security (%) 72 | 100 69 . Level 1 27 | . 30 . Level 2 . | . . . Level 3 . | . . . Level 4 . | . . . Level 5 . | . . . High Security . | . . . Max Security . | . . . Squads Dispatched 6 | . 6 . Investigation 3 | . 3 . Extermination . | . . . Reinforcement 3 | . 3 . Assault . | . . . Garrison . | . . . Intercept . | . . . Searches Triggered . | . . . Construction Impeded . | . . . Haulers Reinforced . | . . . Active Scanning Responses . | . . . Cargo Convoy Interrupts . | . . . Stealth | -11 -10 -10 --------- Run | Yrd Mat Sub Distress Signals 1 | . 1 . Communications Jammed . | . . . Distress Signals . | . . . Times Spotted 24 | . 22 2 Peak Tracking Total 4 | . 4 2 Tactical Retreats 3 | . 3 . Traps | -11 -10 -10 ------- Run | Yrd Mat Sub Traps Triggered . | . . . Indirectly . | . . . Trap Hack Attempts . | . . . Triggered . | . . . Disarmed . | . . . Reprogrammed . | . . . Reused . | . . . Traps Extracted . | . . . Installed . | . . . Triggered . | . . . Machines | -11 -10 -10 ---------- Run | Yrd Mat Sub Machines Disabled . | . . . Max in Single Turn . | . . . Machines Repaired . | . . . Machines Dismantled . | . . . Machines Sabotaged . | . . . Overloaded Fab Kills . | . . . Hacking | -11 -10 -10 --------- Run | Yrd Mat Sub Machines Accessed 5 | . 5 . Terminals 3 | . 3 . Fabricators . | . . . Repair Stations . | . . . Recycling Units 2 | . 2 . Scanalyzers . | . . . Garrison Access . | . . . Total Hacks 11 | . 11 . Successful 4 | . 4 . Failed 7 | . 7 . Catastrophic 1 | . 1 . Database Lockouts . | . . . Manual 11 | . 11 . Terminals 7 | . 7 . Fabricators . | . . . Repair Stations . | . . . Recycling Units 4 | . 4 . Scanalyzers . | . . . Garrison Access . | . . . Terminal Hacks 2 | . 2 . Robot Analysis 1 | . 1 . Prototype ID Bank 1 | . 1 . Fabricator Hacks . | . . . Repair Station Hacks . | . . . Recycling Unit Hacks . | . . . Scanalyzer . | . . . Garrison Access Hacks . | . . . Unauthorized Hacks 2 | . 2 . Terminals . | . . . Fabricators . | . . . Repair Stations . | . . . Recycling Units 2 | . 2 . Tunnel 2 | . 2 . Scanalyzers . | . . . Garrison Access . | . . . Data Cores Recovered . | . . . Used . | . . . Hacking Detections 4 | . 4 . Full Trace Events 1 | . 1 . Feedback Events . | . . . Feedback Blocked . | . . . Robot Schematics Acquired . | . . . Robots Built . | . . . Authchips . | . . . Time . | . . . Total Robot Build Rating . | . . . Part Schematics Acquired . | . . . Parts Built . | . . . Authchips . | . . . Time . | . . . Total Part Build Rating . | . . . Parts Repaired . | . . . Time . | . . . Parts Recycled . | . . . Recycled Matter . | . . . Retrieved Matter . | . . . Retrieved Components . | . . . Parts Scanalyzed . | . . . Part Schematics Acquired . | . . . Parts Damaged . | . . . Bothacking | -11 -10 -10 ------------ Run | Yrd Mat Sub Used RIF Installer . | . . . Robots Hacked . | . . . Non-combat . | . . . Combat . | . . . Robot Hacks Applied . | . . . Relay Couplers Released . | . . . Fabnet Peak Effective % . | . . . Robots Rewired . | . . . Allies Hacked . | . . . Hacks Repelled . | . . . Allies | -11 -10 -10 -------- Run | Yrd Mat Sub Total Allies . | . . . Largest Group . | . . . Highest-Rated Group . | . . . Highest-Rated Ally . | . . . Total Orders . | . . . Ally Attacks . | . . . Total Damage . | . . . Kills . | . . . Allies Corrupted . | . . . Allies Melted . | . . . Intel | -11 -10 -10 ------- Run | Yrd Mat Sub Robot Analysis Total 1 | . 1 . Derelict Logs Recovered . | . . . Drone Launches . | . . . Drone Recoveries . | . . . Exploration | -11 -10 -10 ------------- Run | Yrd Mat Sub Turns Passed 1018 | 85 690 243 Spaces Moved 518 | 45 331 142 Core 4 | 4 . . Treads 321 | 15 164 142 Legs 193 | 26 167 . Wheels . | . . . Hover . | . . . Flight . | . . . Fastest Speed 50 | 50 120 160 Average Speed 150 | 127 148 163 Slowest Speed 240 | 160 190 240 Overloaded Moves . | . . . Propulsion Burnouts . | . . . Robots Hopped . | . . . Cave-ins Triggered . | . . . Exploration Rate (%) 26 | 4 64 11 Regions Visited 2 Branch Regions 1 Pre-discovered Areas 2 | . 2 . Known Exits Taken . | . . . Unknown Exits Taken 2 | 1 1 . Scrap Searched 1 | . . 1 Spaces Dug . | . . . Terrain Destroyed . | . . . Melee . | . . . Projectile . | . . . AOE . | . . . Terrain Rammed . | . . . Walls Destroyed . | . . . Machines Disabled . | . . . Actions | -11 -10 -10 --------- Run | Yrd Mat Sub Total 621 | 60 413 148 Wait 8 | . 8 . Move 516 | 44 330 142 Hop . | . . . Pick Up 5 | 3 2 . Fast Attach 11 | 7 3 1 Attach 2 | . 2 . Detach 1 | . 1 . Swap 8 | 2 6 . Drop 1 | . 1 . Fire 69 | 4 60 5 Melee . | . . . Ram . | . . . Kick . | . . . Crush . | . . . Escape Stasis . | . . . Rewire . | . . . Trap . | . . . Miscellaneous . | . . . Route ------- -11/Scrapyard -10/Materials (discovered 3 exits: [*Mat] / [*Min] / [*Sub]) -10/Subcaves History --------- Turn | Location | Event 7 | -11/Scrapyard | Discovered new exit (range 14) 86 | -11/Scrapyard | Entered Materials 306 | -10/Materials | Build established: Mutant 514 | -10/Materials | Discovered new exit (range 13) 694 | -10/Materials | Discovered new exit (range 14) 751 | -10/Materials | Core integrity fell below 50% 760 | -10/Materials | Discovered new exit (range 8) 761 | -10/Materials | Core integrity fell below 20% 776 | -10/Materials | Entered Subcaves 912 | -10/Subcaves | Shifting Twisted Machinery released Sub. Power Source 984 | -10/Subcaves | Shifting Twisted Machinery released Battle Rifle 1019 | -10/Subcaves | Destroyed by C4-Y63(R) with Subdweller Laser Last Messages --------------- 00757_ G-34 Mercenary destroyed. 00757_ Door malfunctions. 00760_ Fusion Modulator explodes. 00760_ EXIT=FOUND 00760_ Assault Rifle destroyed. 00760_ G-34 Mercenary destroyed. 00762_ Acquired 24 matter. LOCATION=UNKNOWN AMBIENT_HEAT=-10 GOAL=ESCAPE 00796_ Searching scrap... 00796_ Found Battle Cannon. 00796_ Found 19 Matter. 00797_ Acquired 19 matter. 00803_ Subatomizers dissect the Battle Cannon. Sub. Power Source falls loose from the Twisted Machinery. Battle Rifle falls loose from the Twisted Machinery. 00997_ Acquired Battle Rifle. 01002_ Critical hit (Destroy). 01002_ Lgt. Treads destroyed. Map ----- +----------------------------------------------------+ | ???????????????# ##??# #????????? | | ???????????????## ## #??# #????????? | | ????????????????###### #??# ####????????? | | ?????????????????##### #??#####???????????? | | ????????????????## ##??????????????????? | | ???????????????## #???????????????????? | | ???????????????# # #???????????????????? | | ??????????????## * ##""#???????????????????? | | ??????????????#""" #### "#??????????????????? | | ??????????????# "" ######??????????????????? | | ??????????????# " ##?????????????????????? | | ??????????????## #?????????????????????? | | ???????????????## "" #?????????????????????? | | ????????????????# """ #?????????????????????? | | ???????????????##""" ##?????????????????????? | | ???????????????#"""" #??????????????????????? | | ???????????????#" #??????????????????????? | | ???????????????# #??????????????????????? | | ???????????????#### R##?????????????????????? | | ?????????????????#"R #?????????????????????? | | ???????????????#### ##?????????????????????? | | ??????????????## " ##?????????????????????? | | ??????????????# #?????????????????????? | | ??????????????# ##?????????????????????? | | ??????????????## ### #????????????????? | | ???????????????### @ #????????????????? | | ?????????????????## ##????????????????? | | ??????????????????## #####?????????????????? | | ???????????????????# #?????????????????????? | | ??????????????????? #?????????????????????? | | ??????????????????? % ?????????????????????? | | ??????????????????? ?????????????????????? | | ???????????????????# ????????????????????? | | ???????????????????## ????????????????????? | | ?????????????????????## ???????????????????? | | ???????????????????????##???????????????????? | | ????????????????????????????????????????????? | | ????????????????????????????????????????????? | | ????????????????????????????????????????????? | | ????????????????????????????????????????????? | | ????????????????????????????????????????????? | | ????????????????????????????????????????????? | | ????????????????????????????????????????????? | | ????????????????????????????????????????????? | | ????????????????????????????????????????????? | | ????????????????????????????????????????????? | | ????????????????????????????????????????????? | | ????????????????????????????????????????????? | | ????????????????????????????????????????????? | | ????????????????????????????????????????????? | +----------------------------------------------------+ Best States ------------- Heat Dissipation 25 Energy Generation 10 Energy Capacity 250 Matter Stores 300 Matter Capacity 300 Sight Range 16 Terrain Scan Density 10 ECM Strength 1 Armor Coverage 150 Evasion (%) 55 Recoil Reduction 2 Item Schematics ----------------- None Robot Schematics ------------------ None Fabricated ------------ Nothing Alien Tech Used ----------------- None Achievements -------------- None Challenges ------------ None Game ------ Seed MobileFortressExpander Manual? 0 Play Time 00:07:37 Cumulative 72.4 hours Start 2024.04.27 @ 21:49:16 End 2024.04.27 @ 21:57:06 Sessions 1 Manual Loads 0 Difficulty Rogue Special Mode None Game No. 83 Rogue 83 Adventurer 0 Explorer 0 Win Type - Total 0 Types 0/0/0/0/0/0/0/0/0 Lore% 36 Gallery% 51 Achievement% 37 Wizard Run 0 Options --------- Layout 0 ASCII 0 Keyboard 0 Movement Mouse Keybinds 0 Fullscreen 2 Font 24/Smallcaps Map View 183x50 Zoom Use 0% Tactical HUD 1 Map Filters NONE Filters NONE Steam 0 RUN: 6e063f4c-3f59-42bf-bdfc-eafa7e84657f